fUSD/lending_fUSD_20250311
["ID","MTS","AMOUNT","RATE_DAILY","PERIOD"]
[355916477,1741715027560,-151.0,8.99e-05,2]
[355916478,1741715027584,-151.0,8.99e-05,2]
[355916479,1741715027607,-151.0,8.99e-05,2]
[355916480,1741715027629,-164.632887,8.99e-05,2]
[355916481,1741715027666,-164.632887,8.99e-05,2]
[355916482,1741715027689,-164.632887,8.99e-05,2]
[355916483,1741715027712,-164.632887,8.99e-05,2]
[355916484,1741715027734,-164.632887,8.99e-05,2]
[355916485,1741715027762,-164.632887,8.99e-05,2]
[355916486,1741715027787,-151.0,8.99e-05,2]
[355916487,1741715027811,-187.849389,8.99e-05,2]
[355916488,1741715027836,-159.09462,8.99e-05,2]
[355916489,1741715027861,-159.09462,8.99e-05,2]
[355916490,1741715027884,-159.09462,8.99e-05,2]
[355916491,1741715027908,-211.001682,8.99e-05,2]
[355916492,1741715027932,-159.09462,8.99e-05,2]
[355916493,1741715027955,-159.09462,8.99e-05,2]
[355916494,1741715027980,-159.09462,8.99e-05,2]
[355916495,1741715028005,-211.001682,8.99e-05,2]
[355916496,1741715028034,-151.937302,8.99e-05,2]
[355916497,1741715028058,-156.056555,8.99e-05,2]
[355916498,1741715028081,-151.937302,8.99e-05,2]
[355916499,1741715028105,-4005.23381,8.99e-05,2]
[355916500,1741715028129,-4005.23381,8.99e-05,2]
[355916501,1741715028154,-4005.23381,8.99e-05,2]
[355916502,1741715028180,-4005.23381,8.99e-05,2]
[355916503,1741715028207,-4005.23381,8.99e-05,2]
[355916504,1741715028238,-4005.23381,8.99e-05,2]
[355916505,1741715028264,-151.0,8.99e-05,2]
[355916506,1741715028289,-458.887121,8.99e-05,2]
[355916507,1741715028314,-458.887121,8.99e-05,2]
[355916508,1741715028339,-458.887121,8.99e-05,2]
[355916509,1741715028365,-151.0,8.99e-05,2]
[355916510,1741715028391,-151.0,8.99e-05,2]
[355916511,1741715028414,-458.887121,8.99e-05,2]
[355916512,1741715028438,-151.0,8.99e-05,2]
[355916513,1741715028463,-458.887121,8.99e-05,2]
[355916514,1741715028490,-458.887121,8.99e-05,2]
[355916515,1741715028515,-597.389784,8.99e-05,2]
[355916516,1741715028539,-597.389784,8.99e-05,2]
[355916517,1741715028564,-597.389784,8.99e-05,2]
[355916518,1741715028588,-597.389784,8.99e-05,2]
[355916519,1741715028611,-597.389784,8.99e-05,2]
[355916520,1741715028636,-597.389784,8.99e-05,2]
[355916521,1741715028660,-151.0,8.99e-05,2]
[355916522,1741715028685,-151.0,8.99e-05,2]
[355916523,1741715028709,-151.0,8.99e-05,2]
[355916524,1741715028733,-584.556561,8.99e-05,2]
[355916525,1741715028762,-584.556561,8.99e-05,2]
[355916526,1741715028786,-584.556561,8.99e-05,2]
[355916527,1741715029129,-584.556561,8.99e-05,2]
[355916528,1741715029153,-584.556561,8.99e-05,2]
[355916529,1741715029177,-584.556561,8.99e-05,2]
[355916530,1741715029200,-151.0,8.99e-05,2]
[355916531,1741715029228,-151.0,8.99e-05,2]
[355916532,1741715029252,-151.0,8.99e-05,2]
[355916533,1741715029276,-151.0,8.99e-05,2]
[355916534,1741715029299,-151.0,8.99e-05,2]
[355916535,1741715029324,-151.0,8.99e-05,2]
[355916536,1741715029348,-151.172987,8.99e-05,2]
[355916537,1741715029371,-151.172987,8.99e-05,2]
[355916538,1741715029395,-151.172987,8.99e-05,2]
[355916539,1741715029418,-151.172987,8.99e-05,2]
[355916540,1741715029442,-151.172987,8.99e-05,2]
[355916541,1741715029467,-151.172987,8.99e-05,2]
[355916542,1741715029496,-225.896709,8.99e-05,2]
[355916543,1741715029522,-225.896709,8.99e-05,2]
[355916544,1741715029547,-225.896709,8.99e-05,2]
[355916545,1741715029572,-225.896709,8.99e-05,2]
[355916546,1741715029595,-225.896709,8.99e-05,2]
[355916547,1741715029617,-225.896709,8.99e-05,2]
[355916548,1741715029640,-156.0,8.99e-05,3]
[355916549,1741715029664,-10000.0,8.99e-05,2]
[355916550,1741715029686,-10000.0,8.99e-05,2]
[355916551,1741715029709,-10000.0,8.99e-05,2]
[355916552,1741715029731,-10000.0,8.99e-05,2]
[355916553,1741715029753,-10000.0,8.99e-05,2]
[355916554,1741715029777,-10000.0,8.99e-05,2]
[355916555,1741715029801,-10000.0,8.99e-05,2]
[355916556,1741715029823,-10000.0,8.99e-05,2]
[355916557,1741715029846,-10000.0,8.99e-05,2]
[355916558,1741715029869,-10000.0,8.99e-05,2]
[355916559,1741715029892,-10000.0,8.99e-05,2]
[355916560,1741715029915,-10000.0,8.99e-05,2]
[355916561,1741715029938,-10000.0,8.99e-05,2]
[355916562,1741715029962,-10000.0,8.99e-05,2]
[355916563,1741715029985,-10000.0,8.99e-05,2]
[355916564,1741715030018,-560.346232,8.99e-05,2]
[355916565,1741715030046,-560.346232,8.99e-05,2]
[355916566,1741715030072,-1286.03,8.994e-05,2]
[355916567,1741715030097,-395.2100242,8.994e-05,2]
[355916568,1741715030121,-1172.5762261,8.994e-05,2]
[355916569,1741715030146,-1713.1714846,8.994e-05,2]
[355916570,1741715030172,-3566.3780082,8.994e-05,2]
[355916571,1741715030197,-227.857,8.995e-05,2]
[355916572,1741715030221,-1012.0,8.995e-05,2]
[355916573,1741715030245,-3932.0,8.995e-05,2]
[355916574,1741715030269,-1113.0,8.995e-05,2]
[355916575,1741715030293,-1047.18,8.999e-05,2]
[355916576,1741715030320,-138441.50408225,9e-05,2]
[355916577,1741715030342,-597.32639517,9e-05,2]
[355916578,1741715030367,-372.32,9e-05,2]
[355916579,1741715030391,-6827.43,9e-05,2]
[355916580,1741715031107,560.346232,8.99e-05,2]
[355916581,1741715031201,2503.29,8.881e-05,2]
[355916582,1741715031384,500.0,8.882e-05,2]
[355916583,1741715031614,500.0,8.882e-05,2]
[355916584,1741715032029,500.0,8.989e-05,2]
[355916585,1741715032502,560.346232,8.99e-05,2]
[355916586,1741715032674,560.346232,8.99e-05,2]
[355916587,1741715032769,426.6950881,8.882e-05,2]
[355916588,1741715032856,560.346232,8.99e-05,2]
[355916589,1741715033043,500.0,8.882e-05,2]
[355916590,1741715033388,500.0,8.881e-05,2]
[355916591,1741715033757,500.0,8.882e-05,2]
[355916592,1741715034087,500.0,8.989e-05,2]
[355916593,1741715034120,500.0,8.882e-05,2]
[355916594,1741715034156,838.2,8.889e-05,2]
[355916595,1741715034389,1002.81406249,8.81e-05,2]
[355916596,1741715034487,500.0,8.882e-05,2]
[355916597,1741715034520,1009.4,8.881e-05,2]
[355916598,1741715034821,500.0,8.881e-05,2]
[355916599,1741715035061,500.0,8.882e-05,2]
[355916600,1741715035202,877.13,8.881e-05,2]
[355916601,1741715035296,500.0,8.882e-05,2]
[355916602,1741715035447,488.53327793,8.882e-05,2]
[355916603,1741715036018,500.0,8.881e-05,2]
[355916604,1741715036062,932.43,8.881e-05,2]
[355916605,1741715036271,500.0,8.882e-05,2]
[355916606,1741715036493,707.08,8.881e-05,2]
[355916607,1741715036948,500.0,8.882e-05,2]
[355916608,1741715037198,601.75,8.989e-05,2]
[355916609,1741715037293,500.0,8.882e-05,2]
[355916610,1741715037333,500.0,8.882e-05,2]
[355916611,1741715038610,500.0,8.881e-05,2]
[355916612,1741715038933,500.0,8.989e-05,2]
[355916613,1741715040509,4798.88,8.989e-05,2]
[355916614,1741715040547,796.59,8.989e-05,2]
[355916615,1741715040997,794.2,8.882e-05,2]
[355916616,1741715041936,500.0,8.881e-05,2]
[355916617,1741715041982,500.0,8.881e-05,2]
[355916618,1741715042077,500.0,8.989e-05,2]
[355916619,1741715042643,1138.03,8.88e-05,2]
[355916620,1741715043142,500.0,8.881e-05,2]
[355916621,1741715043192,2113.51,8.881e-05,2]
[355916622,1741715044130,2524.14,8.989e-05,2]
[355916623,1741715044500,1467.91,8.881e-05,2]
[355916624,1741715045395,796.39,8.882e-05,2]
[355916625,1741715046371,1875.44,8.889e-05,2]
[355916626,1741715048856,1467.06,8.989e-05,2]
[355916627,1741715049367,1115.51,8.989e-05,2]
[355916628,1741715050605,833.5,8.882e-05,2]
[355916629,1741715052460,500.0,8.989e-05,2]
[355916630,1741715054736,989.89,8.989e-05,2]
[355916631,1741715056069,500.0,8.881e-05,2]
[355916632,1741715058942,897.73,8.999e-05,2]
[355916633,1741715058981,1061.2,8.989e-05,2]
[355916634,1741715059174,500.0,8.882e-05,2]
[355916635,1741715059263,1149.0,8.882e-05,2]
[355916636,1741715059327,500.0,8.881e-05,2]
[355916637,1741715059698,1036.25992332,8.809e-05,2]
[355916638,1741715059773,500.0,8.989e-05,2]
[355916640,1741715061242,640.33,8.989e-05,2]
[355916641,1741715061327,2277.79,8.999e-05,2]
[355916642,1741715061578,2156.78,8.881e-05,2]
[355916643,1741715061673,1714.02,8.881e-05,2]
[355916644,1741715063598,500.0,8.989e-05,2]
[355916645,1741715063862,500.0,8.889e-05,2]
[355916646,1741715065651,526.17,8.889e-05,2]
[355916647,1741715066560,500.0,8.88e-05,2]
[355916648,1741715066961,500.0,8.989e-05,2]
[355916649,1741715067560,579.28,8.989e-05,2]
[355916650,1741715067972,500.0,8.881e-05,2]
[355916651,1741715068562,758.57,8.881e-05,2]
[355916652,1741715069118,1556.22,8.999e-05,2]
[355916653,1741715069539,500.0,8.989e-05,2]
[355916654,1741715070524,2750.17,8.881e-05,2]
[355916655,1741715071037,772.65,8.881e-05,2]
[355916656,1741715071295,69220.75204112,9e-05,2]
[355916657,1741715071840,1838.1,8.989e-05,2]
[355916658,1741715073495,1751.42,8.882e-05,2]
[355916659,1741715073591,500.0,8.989e-05,2]
[355916660,1741715074375,500.0,8.882e-05,2]
[355916661,1741715074408,1024.73129124,8.809e-05,2]
[355916662,1741715074561,554.05,8.88e-05,2]
[355916663,1741715075556,631.63,8.989e-05,2]
[355916664,1741715075842,500.0,8.989e-05,2]
[355916665,1741715076630,2067.49,8.989e-05,2]
[355916666,1741715077148,500.0,8.999e-05,2]
[355916667,1741715077322,391.14940395,8.999e-05,2]
[355916668,1741715077467,500.0,8.881e-05,2]
[355916669,1741715077836,745.48,8.889e-05,2]
[355916670,1741715078639,592.5,8.881e-05,2]
[355916671,1741715078982,2233.33,8.989e-05,2]
[355916672,1741715079148,785.22,8.999e-05,2]
[355916673,1741715079680,396.91480694,8.989e-05,2]
[355916674,1741715080708,750.42,8.881e-05,2]
[355916675,1741715081438,1142.2,8.881e-05,2]
[355916676,1741715082374,2333.6,8.989e-05,2]
[355916677,1741715082448,1226.6,8.999e-05,2]
[355916678,1741715083966,500.0,8.989e-05,2]
[355916679,1741715084100,500.0,8.882e-05,2]
[355916680,1741715085701,500.0,8.881e-05,2]
[355916681,1741715085929,500.0,8.88e-05,2]
[355916682,1741715086713,500.0,8.882e-05,2]
[355916683,1741715086760,500.0,8.881e-05,2]
[355916684,1741715086928,500.0,8.989e-05,2]
[355916685,1741715086988,1204.63,8.881e-05,2]
[355916686,1741715087269,4811.63,8.889e-05,2]
[355916687,1741715087605,500.0,8.882e-05,2]
[355916688,1741715088021,3016.35,8.999e-05,2]
[355916689,1741715088595,500.0,8.881e-05,2]
[355916690,1741715088864,787.02,8.88e-05,2]
[355916691,1741715089371,610.93,8.881e-05,2]
[355916692,1741715090609,901.35,8.989e-05,2]
[355916693,1741715090644,2273.96,8.989e-05,2]
[355916694,1741715091009,500.0,8.882e-05,2]
[355916695,1741715091671,605.17,8.881e-05,2]
[355916696,1741715091723,562.85,8.882e-05,2]
[355916697,1741715091980,2127.14,8.989e-05,2]
[355916698,1741715092751,500.0,8.989e-05,2]
[355916699,1741715092789,2696.86,8.999e-05,2]
[355916700,1741715095005,500.0,8.884e-05,2]
[355916701,1741715095540,500.0,8.939e-05,2]
[355916702,1741715095798,500.0,8.994e-05,2]
[355916703,1741715096425,1122.42,8.889e-05,2]
[355916704,1741715098113,500.0,8.989e-05,2]
[355916705,1741715099534,679.36,8.882e-05,2]
[355916706,1741715099686,2712.34,8.881e-05,2]
[355916707,1741715100517,511.57,8.882e-05,2]
[355916708,1741715100704,1622.67,8.989e-05,2]
[355916709,1741715100741,919.64,8.881e-05,2]
[355916710,1741715101021,3290.82,8.989e-05,2]
[355916711,1741715101245,560.62,8.881e-05,2]
[355916712,1741715101794,3210.34,8.999e-05,2]
[355916713,1741715102204,150.0,8.999e-05,2]
[355916714,1741715103508,500.0,8.881e-05,2]
[355916715,1741715104262,500.0,8.989e-05,2]
[355916716,1741715104470,2472.75,8.881e-05,2]
[355916717,1741715105375,500.0,8.999e-05,2]
[355916718,1741715105742,300.0,8.999e-05,2]
[355916719,1741715105787,1059.11,8.999e-05,2]
[355916720,1741715106319,514.37,8.989e-05,2]
[355916721,1741715106611,500.0,8.889e-05,2]
[355916722,1741715106950,500.0,8.88e-05,2]
[355916723,1741715107216,500.0,8.989e-05,2]
[355916724,1741715108729,2001.23,8.989e-05,2]
[355916725,1741715109023,500.0,8.882e-05,2]
[355916726,1741715109602,512.61,8.881e-05,2]
[355916727,1741715109920,1164.05,8.999e-05,2]
[355916728,1741715110219,570.15,8.989e-05,2]
[355916729,1741715110533,921.52,8.88e-05,2]
[355916730,1741715110649,519.07311048,8.989e-05,2]
[355916731,1741715111036,518.61,8.882e-05,2]
[355916732,1741715111571,500.0,8.881e-05,2]
[355916733,1741715112314,263.4733495,8.994e-05,2]
[355916734,1741715112350,152.433,8.996e-05,2]
[355916735,1741715114343,1011.93436757,8.816e-05,2]
[355916736,1741715114389,636.29,8.881e-05,2]
[355916737,1741715114647,181.71669692,8.881e-05,2]
[355916738,1741715114681,1295.84,8.999e-05,2]
[355916739,1741715116830,500.0,8.881e-05,2]
[355916740,1741715116996,629.58,8.989e-05,2]
[355916741,1741715117267,932.19,8.999e-05,2]
[355916742,1741715117728,500.0,8.989e-05,2]
[355916743,1741715118075,1855.97,8.881e-05,2]
[355916744,1741715118307,1337.936,8.996e-05,2]
[355916745,1741715118847,500.0,8.999e-05,2]
[355916746,1741715119123,2251.4,8.881e-05,2]
[355916747,1741715119307,759.59,8.882e-05,2]
[355916748,1741715119684,786.86,8.182e-05,2]
[355916749,1741715119759,500.0,8.882e-05,2]
[355916750,1741715119916,500.0,8.881e-05,2]
[355916751,1741715119967,1282.65,8.989e-05,2]
[355916752,1741715120871,633.07,8.881e-05,2]
[355916753,1741715123060,500.0,8.999e-05,2]
[355916754,1741715123367,1943.78,8.882e-05,2]
[355916755,1741715124086,500.0,8.989e-05,2]
[355916756,1741715124371,500.0,8.88e-05,2]
[355916757,1741715124470,1012.0,8.996e-05,2]
[355916758,1741715125218,1366.27,8.889e-05,2]
[355916759,1741715125267,508.36514595,8.999e-05,2]
[355916760,1741715125577,568.36,8.989e-05,2]
[355916761,1741715126782,500.0,8.881e-05,2]
[355916762,1741715126896,1605.95,8.999e-05,2]
[355916763,1741715126978,1055.0,8.989e-05,2]
[355916764,1741715127371,500.0,8.999e-05,2]
[355916765,1741715127751,1652.28,8.989e-05,2]
[355916766,1741715128104,500.0,8.882e-05,2]
[355916767,1741715128317,2628.12,8.999e-05,2]
[355916768,1741715128940,500.0,8.999e-05,2]
[355916769,1741715129278,741.77,8.881e-05,2]
[355916770,1741715129505,1081.33,8.999e-05,2]
[355916771,1741715129976,500.0,8.999e-05,2]
[355916772,1741715130070,500.0,8.88e-05,2]
[355916773,1741715132257,500.0,8.882e-05,2]
[355916774,1741715132612,796.27,8.881e-05,2]
[355916775,1741715133254,500.0,8.989e-05,2]
[355916776,1741715133646,782.937,8.996e-05,2]
[355916777,1741715133822,500.0,8.889e-05,2]
[355916778,1741715133926,500.0,8.881e-05,2]
[355916779,1741715134366,5640.07,8.989e-05,2]
[355916780,1741715134438,500.0,8.999e-05,2]
[355916781,1741715134808,500.0,8.989e-05,2]
[355916782,1741715134958,500.0,8.999e-05,2]
[355916783,1741715136289,500.0,8.889e-05,2]
[355916784,1741715137630,500.0,8.999e-05,2]
[355916785,1741715137674,347.3244575,8.994e-05,2]
[355916786,1741715137707,500.0,8.881e-05,2]
[355916787,1741715138068,500.0,8.882e-05,2]
[355916788,1741715138210,2033.0,8.996e-05,2]
[355916789,1741715138284,500.0,8.88e-05,2]
[355916790,1741715139113,1126.39,8.999e-05,2]
[355916791,1741715139510,500.0,8.882e-05,2]
[355916792,1741715139644,500.0,8.999e-05,2]
[355916793,1741715140161,500.0,8.881e-05,2]
[355916794,1741715140193,500.0,8.881e-05,2]
[355916795,1741715140520,2981.12,8.881e-05,2]
[355916796,1741715141422,634.11131769,8.989e-05,2]
[355916797,1741715141455,500.0,8.999e-05,2]
[355916798,1741715141598,500.0,8.989e-05,2]
[355916799,1741715142341,1319.6,8.989e-05,2]
[355916800,1741715142717,500.0,8.882e-05,2]
[355916801,1741715142752,1404.78,8.881e-05,2]
[355916802,1741715142853,500.0,8.889e-05,2]
[355916803,1741715143416,500.0,8.989e-05,2]
[355916804,1741715144621,500.0,8.999e-05,2]
[355916805,1741715144665,500.0,8.881e-05,2]
[355916806,1741715144981,1113.0,8.996e-05,2]
[355916807,1741715145427,500.0,8.881e-05,2]
[355916808,1741715146252,500.0,8.999e-05,2]
[355916809,1741715146524,500.0,8.881e-05,2]
[355916810,1741715147332,1065.2,8.989e-05,2]
[355916811,1741715148321,1032.78,8.881e-05,2]
[355916812,1741715148425,1018.24,8.999e-05,2]
[355916813,1741715149248,500.0,8.999e-05,2]
[355916814,1741715149307,1750.44,8.88e-05,2]
[355916815,1741715150377,1682.06,8.999e-05,2]
[355916816,1741715150498,500.0,8.989e-05,2]
[355916817,1741715151234,3172.23,8.881e-05,2]
[355916818,1741715151272,500.0,8.881e-05,2]
[355916819,1741715151352,500.0,8.882e-05,2]
[355916820,1741715151623,500.0,8.999e-05,2]
[355916821,1741715151862,2157.48,8.881e-05,2]
[355916822,1741715152263,1481.77,8.999e-05,2]
[355916823,1741715152636,1000.0,8.889e-05,2]
[355916824,1741715153250,500.0,8.882e-05,2]
[355916825,1741715153335,500.0,8.989e-05,2]
[355916826,1741715153498,844.05,8.882e-05,2]
[355916827,1741715155494,500.0,8.881e-05,2]
[355916828,1741715155665,1151.23,8.889e-05,2]
[355916829,1741715156797,1130.35,8.881e-05,2]
[355916830,1741715156829,1542.1,8.881e-05,14]
[355916831,1741715158064,1354.98,8.88e-05,2]
[355916832,1741715158210,1779.45,8.881e-05,2]
[355916833,1741715158789,537.5070109,8.989e-05,2]
[355916834,1741715158912,592.94,8.999e-05,2]
[355916835,1741715158972,571.0,8.996e-05,2]
[355916836,1741715160214,500.0,8.999e-05,2]
[355916837,1741715160655,563.83,8.999e-05,2]
[355916838,1741715161496,4268.9,8.999e-05,2]
[355916839,1741715161541,500.0,8.882e-05,2]
[355916840,1741715161851,570.2,8.881e-05,2]
[355916841,1741715162879,1895.7,8.989e-05,2]
[355916842,1741715163778,626.13917316,8.989e-05,2]
[355916843,1741715163964,500.0,8.882e-05,2]
[355916844,1741715164344,150.0,8.996e-05,2]
[355916845,1741715164496,500.0,8.999e-05,2]
[355916846,1741715164784,216.72160378,8.994e-05,2]
[355916847,1741715165620,500.0,8.881e-05,2]
[355916848,1741715165745,1417.83,8.989e-05,2]
[355916849,1741715166504,500.0,8.88e-05,2]
[355916850,1741715167357,869.44,8.882e-05,2]
[355916851,1741715167600,500.0,8.989e-05,2]
[355916852,1741715168502,500.0,8.882e-05,2]
[355916853,1741715168538,1490.71,8.999e-05,2]
[355916854,1741715169334,1013.5,8.889e-05,2]
[355916855,1741715169572,500.0,8.999e-05,2]
[355916857,1741715170332,1489.83,8.881e-05,2]
[355916858,1741715170449,641.0,8.996e-05,2]
[355916859,1741715170750,883.02,8.999e-05,2]
[355916860,1741715170825,500.0,8.881e-05,2]
[355916861,1741715170901,500.0,8.989e-05,2]
[355916862,1741715171963,500.0,8.999e-05,2]
[355916863,1741715172194,500.0,8.88e-05,2]
[355916864,1741715172387,1082.34591846,8.819e-05,2]
[355916865,1741715172689,509.58,8.881e-05,2]
[355916866,1741715173280,500.0,8.989e-05,2]
[355916867,1741715173553,500.0,8.881e-05,2]
[355916868,1741715174138,500.0,8.881e-05,2]
[355916869,1741715175811,500.0,8.882e-05,2]
[355916870,1741715176213,660.04,8.989e-05,2]
[355916871,1741715176953,2220.94,8.999e-05,2]
[355916872,1741715177078,500.0,8.882e-05,2]
[355916873,1741715177872,500.0,8.989e-05,2]
[355916874,1741715178070,500.0,8.882e-05,2]
[355916875,1741715179086,1183.0,8.999e-05,2]
[355916876,1741715179123,500.0,8.881e-05,2]
[355916877,1741715179157,1078.08,8.989e-05,2]
[355916878,1741715180259,1996.29,8.999e-05,2]
[355916879,1741715180298,768.01,8.881e-05,2]
[355916880,1741715181051,1450.08,8.88e-05,2]
[355916881,1741715181354,500.0,8.882e-05,2]
[355916882,1741715181645,500.0,8.989e-05,2]
[355916883,1741715182493,500.0,8.999e-05,2]
[355916884,1741715182577,990.64,8.882e-05,2]
[355916885,1741715182632,500.0,8.999e-05,2]
[355916886,1741715182665,500.0,8.88e-05,2]
[355916887,1741715183731,1418.0,8.996e-05,2]
[355916888,1741715184039,500.0,8.999e-05,2]
[355916889,1741715184496,476.26363362,8.989e-05,2]
[355916890,1741715184766,500.0,8.881e-05,2]
[355916891,1741715186013,500.0,8.881e-05,2]
[355916892,1741715186396,500.0,8.989e-05,2]
[355916893,1741715186552,1775.59,8.989e-05,2]
[355916894,1741715187009,500.0,8.999e-05,2]
[355916896,1741715187395,34610.37602056,9e-05,2]
[355916897,1741715187491,500.0,8.989e-05,2]
[355916898,1741715188009,500.0,8.999e-05,2]
[355916899,1741715188434,500.0,8.881e-05,2]
[355916900,1741715188484,642.01,8.989e-05,2]
[355916901,1741715188646,1050.93,8.889e-05,2]
[355916902,1741715188753,536.71,8.999e-05,2]
[355916903,1741715188798,988.82,8.881e-05,2]
[355916904,1741715189134,500.0,8.989e-05,2]
[355916905,1741715190428,851.68,8.881e-05,2]
[355916906,1741715190473,915.58,8.999e-05,2]
[355916907,1741715190646,1423.58,8.88e-05,2]
[355916908,1741715191419,500.0,8.881e-05,2]
[355916909,1741715191637,500.0,8.999e-05,2]
[355916910,1741715193446,500.0,8.881e-05,2]
[355916911,1741715193882,980.52,8.882e-05,2]
[355916912,1741715194108,500.0,8.881e-05,2]
[355916913,1741715195075,500.0,8.999e-05,2]
[355916914,1741715195966,1453.71,8.881e-05,2]
[355916915,1741715196283,500.0,8.881e-05,2]
[355916916,1741715196360,500.0,8.989e-05,2]
[355916917,1741715197245,500.0,8.999e-05,2]
[355916918,1741715197742,1459.93,8.999e-05,2]
[355916919,1741715198368,500.0,8.881e-05,2]
[355916920,1741715198417,786.0,8.996e-05,2]
[355916921,1741715199014,500.0,8.882e-05,2]
[355916922,1741715199400,151.0,8.99e-05,2]
[355916923,1741715199759,151.0,8.99e-05,2]
[355916924,1741715200093,151.0,8.99e-05,2]
[355916925,1741715200177,562.88,8.881e-05,2]
[355916926,1741715200223,5199.59,8.999e-05,2]
[355916927,1741715200396,1105.44,8.999e-05,2]
[355916928,1741715201104,500.0,8.989e-05,2]
[355916929,1741715201353,500.0,8.88e-05,2]
[355916930,1741715202372,500.0,8.882e-05,2]
[355916931,1741715203190,500.0,8.999e-05,2]
[355916932,1741715204395,500.0,8.881e-05,2]
[355916933,1741715206952,500.0,8.989e-05,2]
[355916934,1741715207004,1142.52,8.881e-05,2]
[355916935,1741715207556,500.0,8.989e-05,2]
[355916936,1741715207724,500.0,8.999e-05,2]
[355916937,1741715207777,1272.87,8.882e-05,2]
[355916938,1741715208246,500.0,8.889e-05,2]
[355916939,1741715208416,500.0,8.989e-05,2]
[355916940,1741715208525,773.41,8.881e-05,2]
[355916941,1741715209116,500.0,8.999e-05,2]
[355916942,1741715210108,500.0,8.999e-05,2]
[355916943,1741715210674,379.58618429,8.989e-05,2]
[355916944,1741715211851,1126.93,8.881e-05,2]
[355916945,1741715211912,500.0,8.882e-05,2]
[355916946,1741715211945,1796.31,8.999e-05,2]
[355916947,1741715212430,1695.52,8.88e-05,2]
[355916948,1741715212600,500.0,8.989e-05,2]
[355916949,1741715212704,458.86,8.881e-05,2]
[355916950,1741715213025,624.03,8.999e-05,2]
[355916951,1741715215222,601.04,8.989e-05,2]
[355916952,1741715215639,500.0,8.881e-05,2]
[355916953,1741715215970,541.38557088,8.989e-05,2]
[355916954,1741715216600,500.0,8.882e-05,2]
[355916955,1741715217581,1782.68,8.989e-05,2]
[355916956,1741715217782,703.28,8.999e-05,2]
[355916957,1741715218514,598.45,8.881e-05,2]
[355916958,1741715218832,1458.3,8.881e-05,2]
[355916959,1741715218871,561.43,8.88e-05,2]
[355916960,1741715219380,500.0,8.889e-05,2]
[355916961,1741715219624,498.02399997,8.989e-05,2]
[355916962,1741715220143,674.09,8.999e-05,2]
[355916963,1741715220695,1343.13,8.881e-05,2]
[355916964,1741715220728,500.0,8.999e-05,2]
[355916965,1741715220993,1482.62,8.881e-05,2]
[355916966,1741715221374,500.0,8.882e-05,2]
[355916967,1741715221774,500.0,8.989e-05,2]
[355916968,1741715222432,626.73,8.881e-05,2]
[355916969,1741715222474,500.0,8.889e-05,2]
[355916970,1741715222709,300.0,8.999e-05,2]
[355916971,1741715223118,500.0,8.882e-05,2]
[355916972,1741715223541,500.0,8.989e-05,2]
[355916973,1741715224128,1274.21,8.989e-05,2]
[355916974,1741715224167,500.0,8.88e-05,2]
[355916975,1741715224228,1463.56,8.219e-05,2]
[355916976,1741715225137,500.0,8.882e-05,2]
[355916977,1741715225463,1319.46,8.989e-05,2]
[355916978,1741715226110,1951.47,8.999e-05,2]
[355916979,1741715226261,500.0,8.989e-05,2]